[Event "Late-Titled-Tuesday-Blitz-February-27-2024"]
[Site "Chess.com"]
[Date "2024.02.27"]
[Round "7"]
[White "chessdjw"]
[Black "rasmussvane"]
[Result "0-1"]
[WhiteElo "2763"]
[BlackElo "2939"]
[TimeControl "180+1"]
[EndTime "15:15:26 PST"]
[Termination "rasmussvane won on time"]

1. d4 {[%clk 0:03:00.9]} 1... d5 {[%clk 0:02:55.6]} 2. c4 {[%clk 0:03:00.9]}
2... e6 {[%clk 0:02:54.5]} 3. Nc3 {[%clk 0:03:00.8]} 3... h6 {[%clk 0:02:54.4]}
4. cxd5 {[%clk 0:02:55.5]} 4... exd5 {[%clk 0:02:55.3]} 5. Bf4 {[%clk
0:02:55.5]} 5... Nf6 {[%clk 0:02:53]} 6. e3 {[%clk 0:02:54.6]} 6... Bd6 {[%clk
0:02:51.7]} 7. Bxd6 {[%clk 0:02:52.8]} 7... Qxd6 {[%clk 0:02:52.6]} 8. Bd3
{[%clk 0:02:52.9]} 8... O-O {[%clk 0:02:50.4]} 9. Nge2 {[%clk 0:02:53.3]} 9...
b6 {[%clk 0:02:44.8]} 10. O-O {[%clk 0:02:51.9]} 10... c5 {[%clk 0:02:44.8]} 11.
Qd2 {[%clk 0:02:47.1]} 11... Re8 {[%clk 0:02:22.5]} 12. Rad1 {[%clk 0:02:45]}
12... Bb7 {[%clk 0:02:14.2]} 13. Bb1 {[%clk 0:02:08.9]} 13... Nbd7 {[%clk
0:02:07.7]} 14. Ng3 {[%clk 0:02:05.9]} 14... Rad8 {[%clk 0:02:05]} 15. Rfe1
{[%clk 0:01:44.2]} 15... a6 {[%clk 0:01:42.6]} 16. Qc2 {[%clk 0:01:43.6]} 16...
g6 {[%clk 0:01:31]} 17. a3 {[%clk 0:01:24.4]} 17... Qc7 {[%clk 0:01:23]} 18.
dxc5 {[%clk 0:01:18.6]} 18... bxc5 {[%clk 0:01:21.4]} 19. Ba2 {[%clk 0:01:19.2]}
19... Ne5 {[%clk 0:01:12.9]} 20. Nce2 {[%clk 0:01:01.9]} 20... Kg7 {[%clk
0:01:06.3]} 21. Nf4 {[%clk 0:01:01.3]} 21... Qb6 {[%clk 0:01:02.2]} 22. b4
{[%clk 0:00:38.1]} 22... cxb4 {[%clk 0:00:57.1]} 23. axb4 {[%clk 0:00:38.1]}
23... d4 {[%clk 0:00:56.7]} 24. exd4 {[%clk 0:00:35.2]} 24... Rxd4 {[%clk
0:00:55.4]} 25. Qc3 {[%clk 0:00:01.6]} 25... Rxf4 {[%clk 0:00:52]} 0-1

[Event "Late-Titled-Tuesday-Blitz-February-27-2024"]
[Site "Chess.com"]
[Date "2024.02.27"]
[Round "7"]
[White "ChessSwole"]
[Black "Practical-Play"]
[Result "1-0"]
[WhiteElo "2698"]
[BlackElo "2538"]
[TimeControl "180+1"]
[EndTime "15:15:32 PST"]
[Termination "ChessSwole won by resignation"]

1. d4 {[%clk 0:02:58.4]} 1... Nf6 {[%clk 0:02:57.7]} 2. c4 {[%clk 0:02:58.5]}
2... d5 {[%clk 0:02:57.9]} 3. cxd5 {[%clk 0:02:58.2]} 3... Nxd5 {[%clk
0:02:58.8]} 4. Nf3 {[%clk 0:02:58.7]} 4... Bf5 {[%clk 0:02:57.5]} 5. Qb3 {[%clk
0:02:56.7]} 5... Nc6 {[%clk 0:02:47]} 6. Nc3 {[%clk 0:02:41.7]} 6... e6 {[%clk
0:02:39.3]} 7. e4 {[%clk 0:02:18.9]} 7... Nxc3 {[%clk 0:02:39.3]} 8. exf5 {[%clk
0:02:19.3]} 8... Nd5 {[%clk 0:02:31.7]} 9. Qxb7 {[%clk 0:02:08.9]} 9... Bb4+
{[%clk 0:02:01]} 10. Kd1 {[%clk 0:02:01.5]} 10... Na5 {[%clk 0:01:53.3]} 11.
Bb5+ {[%clk 0:01:40.5]} 11... Kf8 {[%clk 0:01:37.2]} 12. Qa6 {[%clk 0:01:40.5]}
12... c5 {[%clk 0:00:53.8]} 13. a3 {[%clk 0:01:33.9]} 13... Nc7 {[%clk
0:00:52.4]} 14. axb4 {[%clk 0:01:24.3]} 14... Nxa6 {[%clk 0:00:51.3]} 15. Rxa5
{[%clk 0:01:14.5]} 15... Nxb4 {[%clk 0:00:46.3]} 16. Ra3 {[%clk 0:01:14.3]}
16... e5 {[%clk 0:00:30.1]} 17. Re1 {[%clk 0:01:02]} 17... f6 {[%clk 0:00:27.2]}
18. Bd2 {[%clk 0:00:58.9]} 18... Rb8 {[%clk 0:00:24.4]} 19. Bc4 {[%clk 0:00:57]}
19... a5 {[%clk 0:00:15.7]} 20. dxe5 {[%clk 0:00:56.5]} 20... fxe5 {[%clk
0:00:13.2]} 21. Ng5 {[%clk 0:00:53.4]} 21... Qf6 {[%clk 0:00:07.6]} 22. Ne6+
{[%clk 0:00:51.8]} 22... Ke7 {[%clk 0:00:06.8]} 23. Bg5 {[%clk 0:00:51.1]} 23...
Rhd8+ {[%clk 0:00:06]} 24. Kc1 {[%clk 0:00:49.8]} 1-0

[Event "Late-Titled-Tuesday-Blitz-February-27-2024"]
[Site "Chess.com"]
[Date "2024.02.27"]
[Round "7"]
[White "ElVital"]
[Black "Anna20240"]
[Result "1-0"]
[WhiteElo "2365"]
[BlackElo "1926"]
[TimeControl "180+1"]
[EndTime "15:15:33 PST"]
[Termination "ElVital won on time"]

1. d4 {[%clk 0:02:59.5]} 1... d5 {[%clk 0:02:59.5]} 2. c4 {[%clk 0:02:55.5]}
2... c6 {[%clk 0:02:59]} 3. e3 {[%clk 0:02:54.6]} 3... Nf6 {[%clk 0:02:58.3]} 4.
Nf3 {[%clk 0:02:51.4]} 4... Bf5 {[%clk 0:02:58.2]} 5. Nc3 {[%clk 0:02:47.1]}
5... e6 {[%clk 0:02:57.1]} 6. Nh4 {[%clk 0:02:47.1]} 6... Bg6 {[%clk 0:02:56]}
7. Be2 {[%clk 0:02:46.5]} 7... Bb4 {[%clk 0:02:52.6]} 8. O-O {[%clk 0:02:44.8]}
8... O-O {[%clk 0:02:50.5]} 9. g3 {[%clk 0:02:41.4]} 9... Nbd7 {[%clk
0:02:45.1]} 10. Qb3 {[%clk 0:02:38.6]} 10... Bxc3 {[%clk 0:02:36.1]} 11. bxc3
{[%clk 0:02:39.5]} 11... Qc7 {[%clk 0:02:29.6]} 12. Nxg6 {[%clk 0:02:38.1]}
12... hxg6 {[%clk 0:02:28.4]} 13. Rb1 {[%clk 0:02:38.6]} 13... Rab8 {[%clk
0:02:27]} 14. cxd5 {[%clk 0:02:36.2]} 14... cxd5 {[%clk 0:02:26.4]} 15. c4
{[%clk 0:02:33.5]} 15... dxc4 {[%clk 0:02:24.7]} 16. Bxc4 {[%clk 0:02:33.7]}
16... Rfc8 {[%clk 0:02:23.1]} 17. Be2 {[%clk 0:02:31.2]} 17... Nd5 {[%clk
0:02:18.2]} 18. Bf3 {[%clk 0:02:21.3]} 18... Nc5 {[%clk 0:02:05.2]} 19. dxc5
{[%clk 0:02:16.2]} 19... Qxc5 {[%clk 0:01:59.4]} 20. Ba3 {[%clk 0:02:14.4]}
20... Qa5 {[%clk 0:01:52]} 21. Bd6 {[%clk 0:02:13.2]} 21... Ra8 {[%clk
0:01:46.9]} 22. Rfc1 {[%clk 0:02:12.4]} 22... Rxc1+ {[%clk 0:01:37]} 23. Rxc1
{[%clk 0:02:11.5]} 23... b6 {[%clk 0:01:33.2]} 24. e4 {[%clk 0:02:00.2]} 24...
Nf6 {[%clk 0:01:28.1]} 25. e5 {[%clk 0:01:59.9]} 25... Nd5 {[%clk 0:01:26.2]}
26. a4 {[%clk 0:01:42.3]} 26... Qd2 {[%clk 0:01:19.9]} 27. Rc2 {[%clk 0:01:40]}
27... Qe1+ {[%clk 0:01:18.3]} 28. Kg2 {[%clk 0:01:38.9]} 28... Rd8 {[%clk
0:01:11.8]} 29. Bxd5 {[%clk 0:01:34.6]} 29... exd5 {[%clk 0:01:08.5]} 30. Qxd5
{[%clk 0:01:35.5]} 30... Qb1 {[%clk 0:01:01.3]} 31. Rc7 {[%clk 0:01:29.9]} 31...
Qf5 {[%clk 0:00:59.5]} 32. Rxa7 {[%clk 0:01:20.3]} 32... Rxd6 {[%clk 0:00:17.2]}
33. Qa8+ {[%clk 0:01:19.4]} 33... Kh7 {[%clk 0:00:14.8]} 34. exd6 {[%clk
0:01:19.9]} 1-0

[Event "Late-Titled-Tuesday-Blitz-February-27-2024"]
[Site "Chess.com"]
[Date "2024.02.27"]
[Round "7"]
[White "Mikhail_Golubev"]
[Black "szachmistrz2500"]
[Result "0-1"]
[WhiteElo "2626"]
[BlackElo "2455"]
[TimeControl "180+1"]
[EndTime "15:15:47 PST"]
[Termination "szachmistrz2500 won on time"]

1. e4 {[%clk 0:03:00.9]} 1... c5 {[%clk 0:02:59.2]} 2. Nf3 {[%clk 0:03:00.9]}
2... d6 {[%clk 0:02:58.9]} 3. d4 {[%clk 0:03:00.9]} 3... cxd4 {[%clk 0:02:59.3]}
4. Nxd4 {[%clk 0:03:01.6]} 4... Nf6 {[%clk 0:02:59.6]} 5. Nc3 {[%clk 0:03:02]}
5... a6 {[%clk 0:02:59.9]} 6. Bc4 {[%clk 0:03:00.6]} 6... e6 {[%clk 0:02:59.2]}
7. O-O {[%clk 0:03:00.4]} 7... b5 {[%clk 0:02:58.1]} 8. Bb3 {[%clk 0:03:00.2]}
8... Nbd7 {[%clk 0:02:58.4]} 9. Bxe6 {[%clk 0:02:29.1]} 9... fxe6 {[%clk
0:02:57.3]} 10. Nxe6 {[%clk 0:02:29.3]} 10... Qb6 {[%clk 0:02:53.9]} 11. Nd5
{[%clk 0:02:18.9]} 11... Nxd5 {[%clk 0:02:42]} 12. exd5 {[%clk 0:02:19.8]} 12...
Nf6 {[%clk 0:02:36.6]} 13. Ng5 {[%clk 0:01:41.2]} 13... Be7 {[%clk 0:02:21.9]}
14. Re1 {[%clk 0:01:37.2]} 14... Qc7 {[%clk 0:02:17.9]} 15. Qe2 {[%clk
0:01:24.4]} 15... Ra7 {[%clk 0:02:17.9]} 16. a4 {[%clk 0:00:47.5]} 16... b4
{[%clk 0:01:58.9]} 17. a5 {[%clk 0:00:47]} 17... O-O {[%clk 0:01:55.4]} 18. Be3
{[%clk 0:00:47.1]} 18... Rb7 {[%clk 0:01:51.7]} 19. Bb6 {[%clk 0:00:47]} 19...
Qd7 {[%clk 0:01:51]} 20. Ne6 {[%clk 0:00:47.2]} 20... Rf7 {[%clk 0:01:42.8]} 21.
Rad1 {[%clk 0:00:40.1]} 21... Qb5 {[%clk 0:01:14.4]} 22. Qf3 {[%clk 0:00:17.2]}
22... Nd7 {[%clk 0:01:01.5]} 23. Qh5 {[%clk 0:00:15.5]} 23... Nxb6 {[%clk
0:00:59.8]} 24. axb6 {[%clk 0:00:14.3]} 24... Qxb6 {[%clk 0:00:58.4]} 25. Ng5
{[%clk 0:00:13]} 25... Qxf2+ {[%clk 0:00:54.2]} 26. Kh1 {[%clk 0:00:12.5]} 26...
Bxg5 {[%clk 0:00:52.9]} 27. Qxg5 {[%clk 0:00:10.2]} 27... Rf8 {[%clk 0:00:44.8]}
28. h3 {[%clk 0:00:05.1]} 28... Rbf7 {[%clk 0:00:43.6]} 29. Qd2 {[%clk
0:00:01.1]} 29... Qc5 {[%clk 0:00:41.8]} 0-1

[Event "Late-Titled-Tuesday-Blitz-February-27-2024"]
[Site "Chess.com"]
[Date "2024.02.27"]
[Round "7"]
[White "2L8IWUN"]
[Black "TheAlienParty"]
[Result "0-1"]
[WhiteElo "2167"]
[BlackElo "2385"]
[TimeControl "180+1"]
[EndTime "15:15:48 PST"]
[Termination "TheAlienParty won on time"]

1. d4 {[%clk 0:03:00.1]} 1... Nf6 {[%clk 0:02:59.4]} 2. Nf3 {[%clk 0:03:00.3]}
2... e6 {[%clk 0:02:59]} 3. Bf4 {[%clk 0:03:00.5]} 3... c5 {[%clk 0:02:58.9]} 4.
e3 {[%clk 0:03:00.5]} 4... d5 {[%clk 0:02:58.4]} 5. Nbd2 {[%clk 0:03:00]} 5...
Nc6 {[%clk 0:02:58.2]} 6. c3 {[%clk 0:02:59.4]} 6... Bd6 {[%clk 0:02:58.1]} 7.
Bg3 {[%clk 0:02:58.9]} 7... b6 {[%clk 0:02:54.1]} 8. Bd3 {[%clk 0:02:56.9]} 8...
O-O {[%clk 0:02:53.6]} 9. Qe2 {[%clk 0:02:55.8]} 9... Bb7 {[%clk 0:02:53.3]} 10.
Rd1 {[%clk 0:02:54.3]} 10... cxd4 {[%clk 0:02:48]} 11. exd4 {[%clk 0:02:43]}
11... Rc8 {[%clk 0:02:47.3]} 12. Ne5 {[%clk 0:02:21.7]} 12... Ne7 {[%clk
0:02:40.8]} 13. Ndf3 {[%clk 0:02:11]} 13... Nf5 {[%clk 0:02:33.9]} 14. O-O
{[%clk 0:02:00.5]} 14... Ne4 {[%clk 0:02:32.5]} 15. Bxe4 {[%clk 0:01:53.3]}
15... dxe4 {[%clk 0:02:31.7]} 16. Nd2 {[%clk 0:01:53.8]} 16... Nxg3 {[%clk
0:02:24.3]} 17. hxg3 {[%clk 0:01:53.9]} 17... Bxe5 {[%clk 0:02:15.8]} 18. dxe5
{[%clk 0:01:54.8]} 18... Qd5 {[%clk 0:02:13.4]} 19. Rfe1 {[%clk 0:01:46.3]}
19... e3 {[%clk 0:02:08.6]} 20. Nf3 {[%clk 0:01:41.5]} 20... exf2+ {[%clk
0:02:04.6]} 21. Qxf2 {[%clk 0:01:42.4]} 21... Qxa2 {[%clk 0:02:00.6]} 22. g4
{[%clk 0:01:40.2]} 22... Qc4 {[%clk 0:01:57.6]} 23. g5 {[%clk 0:01:39.8]} 23...
Rfd8 {[%clk 0:01:55.4]} 24. Rxd8+ {[%clk 0:01:32.6]} 24... Rxd8 {[%clk
0:01:54.7]} 25. Rf1 {[%clk 0:01:31.8]} 25... Rf8 {[%clk 0:01:38.6]} 26. Nd4
{[%clk 0:01:29.7]} 26... Qd5 {[%clk 0:01:38]} 27. Qg3 {[%clk 0:01:25.9]} 27...
Qe4 {[%clk 0:01:31]} 28. Kh2 {[%clk 0:00:58.4]} 28... Qg6 {[%clk 0:01:28.7]} 29.
Nb5 {[%clk 0:00:53]} 29... Ba6 {[%clk 0:01:24.5]} 30. c4 {[%clk 0:00:52.4]}
30... Bxb5 {[%clk 0:01:09.2]} 31. cxb5 {[%clk 0:00:52.6]} 31... Rc8 {[%clk
0:01:05.3]} 32. Rd1 {[%clk 0:00:47.2]} 32... Qh5+ {[%clk 0:00:56.2]} 0-1

[Event "Late-Titled-Tuesday-Blitz-February-27-2024"]
[Site "Chess.com"]
[Date "2024.02.27"]
[Round "7"]
[White "sergiochess83"]
[Black "wqws"]
[Result "1/2-1/2"]
[WhiteElo "2892"]
[BlackElo "2691"]
[TimeControl "180+1"]
[EndTime "15:15:49 PST"]
[Termination "Game drawn by agreement"]

1. e4 {[%clk 0:02:56.9]} 1... e5 {[%clk 0:02:59.2]} 2. Nf3 {[%clk 0:02:55.9]}
2... Nc6 {[%clk 0:02:58.9]} 3. Bb5 {[%clk 0:02:55.7]} 3... a6 {[%clk 0:02:59.1]}
4. Ba4 {[%clk 0:02:56]} 4... Nf6 {[%clk 0:02:59.1]} 5. O-O {[%clk 0:02:56.6]}
5... b5 {[%clk 0:02:59.2]} 6. Bb3 {[%clk 0:02:56.4]} 6... Be7 {[%clk 0:02:59.9]}
7. a4 {[%clk 0:02:55.2]} 7... b4 {[%clk 0:02:52.2]} 8. d4 {[%clk 0:02:45.3]}
8... d6 {[%clk 0:02:48.5]} 9. dxe5 {[%clk 0:02:37.7]} 9... Nxe5 {[%clk
0:02:48.3]} 10. Nxe5 {[%clk 0:02:34.5]} 10... dxe5 {[%clk 0:02:49.2]} 11. Nd2
{[%clk 0:02:34.5]} 11... O-O {[%clk 0:02:45.5]} 12. Qe2 {[%clk 0:02:34.8]} 12...
a5 {[%clk 0:02:38.9]} 13. Rd1 {[%clk 0:02:28.2]} 13... c6 {[%clk 0:02:36]} 14.
Nc4 {[%clk 0:02:19.7]} 14... Qc7 {[%clk 0:02:35.3]} 15. Be3 {[%clk 0:02:19.9]}
15... Nd7 {[%clk 0:02:26.9]} 16. Rd2 {[%clk 0:02:04.5]} 16... Nc5 {[%clk
0:02:25.5]} 17. Rad1 {[%clk 0:01:50.7]} 17... Be6 {[%clk 0:02:11.5]} 18. Bxc5
{[%clk 0:01:06.9]} 18... Bxc5 {[%clk 0:02:09.9]} 19. Ne3 {[%clk 0:01:07.6]}
19... Bxe3 {[%clk 0:01:52.7]} 20. Qxe3 {[%clk 0:01:05.1]} 20... Rad8 {[%clk
0:01:52.2]} 21. Bxe6 {[%clk 0:01:02.8]} 21... fxe6 {[%clk 0:01:51.8]} 22. h3
{[%clk 0:00:54.6]} 22... Rxd2 {[%clk 0:01:18.2]} 23. Rxd2 {[%clk 0:00:54.4]}
23... Rd8 {[%clk 0:01:18.8]} 24. g3 {[%clk 0:00:41.2]} 24... Rxd2 {[%clk
0:01:15.2]} 25. Qxd2 {[%clk 0:00:41.4]} 25... c5 {[%clk 0:01:12.3]} 26. Qe2
{[%clk 0:00:37.3]} 26... c4 {[%clk 0:01:08.3]} 27. Qe3 {[%clk 0:00:29.2]} 27...
Qc6 {[%clk 0:01:01.3]} 28. b3 {[%clk 0:00:29.8]} 28... cxb3 {[%clk 0:01:00]} 29.
cxb3 {[%clk 0:00:30.7]} 29... Qc3 {[%clk 0:00:57.3]} 30. Kf1 {[%clk 0:00:20.5]}
30... Qxe3 {[%clk 0:00:51.4]} 31. fxe3 {[%clk 0:00:20.4]} 31... Kf7 {[%clk
0:00:52.3]} 32. Ke2 {[%clk 0:00:20.5]} 32... Ke7 {[%clk 0:00:53.2]} 33. Kd3
{[%clk 0:00:21]} 33... Kd6 {[%clk 0:00:54.1]} 34. Kc4 {[%clk 0:00:21.4]} 34...
Kc6 {[%clk 0:00:54.6]} 35. g4 {[%clk 0:00:18.7]} 35... g5 {[%clk 0:00:50.3]} 36.
Kd3 {[%clk 0:00:17.9]} 36... Kc5 {[%clk 0:00:50.7]} 37. Ke2 {[%clk 0:00:18]}
37... Kc6 {[%clk 0:00:49.2]} 1/2-1/2

[Event "Late-Titled-Tuesday-Blitz-February-27-2024"]
[Site "Chess.com"]
[Date "2024.02.27"]
[Round "7"]
[White "HansOnTwitch"]
[Black "Korchmar_Vasiliy"]
[Result "0-1"]
[WhiteElo "3053"]
[BlackElo "2714"]
[TimeControl "180+1"]
[EndTime "15:15:52 PST"]
[Termination "Korchmar_Vasiliy won by resignation"]

1. e4 {[%clk 0:03:00.9]} 1... c5 {[%clk 0:02:59.5]} 2. Nf3 {[%clk 0:02:50.4]}
2... d6 {[%clk 0:02:59.9]} 3. d4 {[%clk 0:02:30.6]} 3... cxd4 {[%clk 0:03:00.8]}
4. Nxd4 {[%clk 0:02:31.4]} 4... Nf6 {[%clk 0:03:00.8]} 5. Nc3 {[%clk 0:02:31.5]}
5... Nc6 {[%clk 0:03:01.3]} 6. Bg5 {[%clk 0:02:28.9]} 6... Bd7 {[%clk 0:03:01]}
7. Bxf6 {[%clk 0:02:27.5]} 7... gxf6 {[%clk 0:02:59.8]} 8. Bb5 {[%clk
0:02:28.2]} 8... e6 {[%clk 0:02:36.1]} 9. Bxc6 {[%clk 0:02:23.6]} 9... bxc6
{[%clk 0:02:34.8]} 10. Qd2 {[%clk 0:02:24]} 10... h5 {[%clk 0:02:20.5]} 11. f4
{[%clk 0:02:23.3]} 11... Bh6 {[%clk 0:02:20.1]} 12. g3 {[%clk 0:02:23.5]} 12...
Rb8 {[%clk 0:01:57]} 13. Nb3 {[%clk 0:02:22.9]} 13... Qc7 {[%clk 0:01:54.1]} 14.
O-O-O {[%clk 0:02:22.9]} 14... Ke7 {[%clk 0:01:52.8]} 15. Rhe1 {[%clk
0:02:23.2]} 15... a5 {[%clk 0:01:51.9]} 16. Kb1 {[%clk 0:02:23.4]} 16... Rhd8
{[%clk 0:01:36.5]} 17. Nxa5 {[%clk 0:02:22.5]} 17... c5 {[%clk 0:01:18.1]} 18.
Nc4 {[%clk 0:02:17.9]} 18... Be8 {[%clk 0:01:00.6]} 19. Ne3 {[%clk 0:02:15.5]}
19... Kf8 {[%clk 0:00:57.6]} 20. Qe2 {[%clk 0:02:16]} 20... Rb4 {[%clk
0:00:52.9]} 21. Qxh5 {[%clk 0:02:15.7]} 21... Bg7 {[%clk 0:00:53.2]} 22. Ncd5
{[%clk 0:01:58.8]} 22... exd5 {[%clk 0:00:47.7]} 23. Nxd5 {[%clk 0:01:59.7]}
23... Qb7 {[%clk 0:00:42.4]} 24. Nxb4 {[%clk 0:01:59.7]} 24... Qxb4 {[%clk
0:00:43.3]} 25. c3 {[%clk 0:01:58.6]} 25... Qa4 {[%clk 0:00:38.5]} 26. Qd5
{[%clk 0:01:57.8]} 26... Bc6 {[%clk 0:00:30.9]} 27. Qd3 {[%clk 0:01:57.7]} 27...
f5 {[%clk 0:00:19.1]} 28. exf5 {[%clk 0:01:55.1]} 28... Kg8 {[%clk 0:00:18.8]}
29. b3 {[%clk 0:01:41.4]} 29... Qa5 {[%clk 0:00:16.5]} 30. c4 {[%clk 0:01:41.5]}
30... d5 {[%clk 0:00:06.4]} 31. cxd5 {[%clk 0:01:37.3]} 31... Bxd5 {[%clk
0:00:04.8]} 32. Qc2 {[%clk 0:01:36.4]} 32... c4 {[%clk 0:00:03.1]} 33. bxc4
{[%clk 0:00:59.9]} 33... Rb8+ {[%clk 0:00:02.6]} 34. Kc1 {[%clk 0:01:00.2]}
34... Qa3+ {[%clk 0:00:02.7]} 35. Kd2 {[%clk 0:01:00.9]} 35... Rb2 {[%clk
0:00:02.4]} 36. Rc1 {[%clk 0:01:01.4]} 36... Rxc2+ {[%clk 0:00:02.5]} 37. Rxc2
{[%clk 0:01:02.3]} 37... Qb4+ {[%clk 0:00:03.1]} 38. Ke2 {[%clk 0:01:01.7]}
38... Bxc4+ {[%clk 0:00:03.6]} 39. Kf2 {[%clk 0:01:01.6]} 39... Bd4+ {[%clk
0:00:04]} 40. Kf3 {[%clk 0:01:02.2]} 40... Qxe1 {[%clk 0:00:03.8]} 41. Rxc4
{[%clk 0:01:02.9]} 41... Qf1+ {[%clk 0:00:04.3]} 42. Kg4 {[%clk 0:01:03.4]}
42... Qxc4 {[%clk 0:00:05.1]} 0-1

[Event "Late-Titled-Tuesday-Blitz-February-27-2024"]
[Site "Chess.com"]
[Date "2024.02.27"]
[Round "7"]
[White "LUISMIGUELOV"]
[Black "PapaieDudu"]
[Result "1/2-1/2"]
[WhiteElo "2194"]
[BlackElo "2391"]
[TimeControl "180+1"]
[EndTime "15:15:54 PST"]
[Termination "Game drawn - insufficient material"]

1. d4 {[%clk 0:03:00.9]} 1... d5 {[%clk 0:03:00.5]} 2. c3 {[%clk 0:02:58.7]}
2... e6 {[%clk 0:03:01.2]} 3. Nf3 {[%clk 0:02:57]} 3... Nf6 {[%clk 0:03:02.1]}
4. Bg5 {[%clk 0:02:56.4]} 4... Be7 {[%clk 0:03:03]} 5. e3 {[%clk 0:02:55.4]}
5... h6 {[%clk 0:03:03.2]} 6. Bh4 {[%clk 0:02:54.4]} 6... O-O {[%clk 0:03:03.9]}
7. Bd3 {[%clk 0:02:54.2]} 7... b6 {[%clk 0:03:04.7]} 8. Qe2 {[%clk 0:02:52]}
8... Bb7 {[%clk 0:03:05.3]} 9. Ne5 {[%clk 0:02:49.8]} 9... Nbd7 {[%clk
0:03:05.4]} 10. f4 {[%clk 0:02:49.6]} 10... Ne4 {[%clk 0:03:05.4]} 11. Bxe7
{[%clk 0:02:48.2]} 11... Qxe7 {[%clk 0:03:06.3]} 12. O-O {[%clk 0:02:43.6]}
12... Rfe8 {[%clk 0:03:05.2]} 13. Nd2 {[%clk 0:02:42.5]} 13... Ndf6 {[%clk
0:03:05.3]} 14. Nxe4 {[%clk 0:02:41.1]} 14... dxe4 {[%clk 0:03:05.3]} 15. Bc4
{[%clk 0:02:35.9]} 15... c6 {[%clk 0:03:04.8]} 16. h3 {[%clk 0:02:34.9]} 16...
a5 {[%clk 0:03:05.5]} 17. a3 {[%clk 0:02:32.7]} 17... a4 {[%clk 0:03:04.8]} 18.
Rae1 {[%clk 0:02:25.5]} 18... b5 {[%clk 0:03:05.2]} 19. Ba2 {[%clk 0:02:22.2]}
19... Rab8 {[%clk 0:03:02.8]} 20. g4 {[%clk 0:02:15]} 20... c5 {[%clk
0:03:02.6]} 21. g5 {[%clk 0:01:42.8]} 21... hxg5 {[%clk 0:03:01.8]} 22. fxg5
{[%clk 0:01:42.8]} 22... Nd5 {[%clk 0:03:02.5]} 23. Bxd5 {[%clk 0:01:34.5]}
23... Qxg5+ {[%clk 0:03:01.2]} 24. Qg2 {[%clk 0:01:31.1]} 24... Qxg2+ {[%clk
0:02:58.9]} 25. Kxg2 {[%clk 0:01:31.1]} 25... Bxd5 {[%clk 0:02:52.4]} 26. Nd7
{[%clk 0:01:31.4]} 26... cxd4 {[%clk 0:02:45.3]} 27. Nxb8 {[%clk 0:01:30.9]}
27... Rxb8 {[%clk 0:02:40.7]} 28. exd4 {[%clk 0:01:27.3]} 28... f5 {[%clk
0:02:38.3]} 29. Kg3 {[%clk 0:01:26.7]} 29... Kf7 {[%clk 0:02:36.6]} 30. h4
{[%clk 0:01:25.8]} 30... Rh8 {[%clk 0:02:36.6]} 31. Rh1 {[%clk 0:01:23.5]} 31...
Kf6 {[%clk 0:02:36.5]} 32. Kf4 {[%clk 0:01:19.4]} 32... Rh5 {[%clk 0:02:31.6]}
33. Reg1 {[%clk 0:01:12.2]} 33... e3 {[%clk 0:02:21.9]} 34. Rh2 {[%clk
0:01:04.8]} 34... e2 {[%clk 0:02:20.2]} 35. Re1 {[%clk 0:01:01.3]} 35... Rxh4+
{[%clk 0:02:08.1]} 36. Rxh4 {[%clk 0:00:58.5]} 36... g5+ {[%clk 0:02:08.8]} 37.
Kg3 {[%clk 0:00:58.1]} 37... gxh4+ {[%clk 0:02:05]} 38. Kxh4 {[%clk 0:00:58.2]}
38... Bc4 {[%clk 0:02:04.5]} 39. Kg3 {[%clk 0:00:53.3]} 39... Kg5 {[%clk
0:02:04.3]} 40. Kf3 {[%clk 0:00:51.6]} 40... f4 {[%clk 0:02:02.1]} 41. Ke4
{[%clk 0:00:38.2]} 41... Kg4 {[%clk 0:01:58.3]} 42. Rg1+ {[%clk 0:00:36.9]}
42... Kh3 {[%clk 0:01:58.5]} 43. Kxf4 {[%clk 0:00:37]} 43... Kh2 {[%clk
0:01:57.6]} 44. Re1 {[%clk 0:00:33.4]} 44... Kg2 {[%clk 0:01:57.9]} 45. Ke3
{[%clk 0:00:33.3]} 45... Kg3 {[%clk 0:01:57.8]} 46. Rxe2 {[%clk 0:00:31.8]}
46... Bxe2 {[%clk 0:01:57.7]} 47. Kxe2 {[%clk 0:00:31.9]} 47... Kf4 {[%clk
0:01:52.4]} 48. Kd3 {[%clk 0:00:31.5]} 48... Kf3 {[%clk 0:01:52.2]} 49. c4
{[%clk 0:00:31.2]} 49... bxc4+ {[%clk 0:01:52.8]} 50. Kxc4 {[%clk 0:00:31]}
50... Ke4 {[%clk 0:01:53.5]} 51. Kc3 {[%clk 0:00:19]} 51... Ke3 {[%clk
0:01:53.6]} 52. Kc4 {[%clk 0:00:17.1]} 52... Ke4 {[%clk 0:01:53.9]} 53. Kc3
{[%clk 0:00:13.1]} 53... Ke3 {[%clk 0:01:54.1]} 54. Kc4 {[%clk 0:00:12.9]} 54...
Kd2 {[%clk 0:01:53.3]} 55. b3 {[%clk 0:00:09.9]} 55... axb3 {[%clk 0:01:48.2]}
56. Kxb3 {[%clk 0:00:10.2]} 56... Kd3 {[%clk 0:01:48.4]} 57. a4 {[%clk 0:00:10]}
57... Kxd4 {[%clk 0:01:49.1]} 58. a5 {[%clk 0:00:10.1]} 58... Kc5 {[%clk
0:01:46.5]} 59. Kc3 {[%clk 0:00:08.8]} 59... Kb5 {[%clk 0:01:44.8]} 60. Kd4
{[%clk 0:00:08.9]} 60... Kxa5 {[%clk 0:01:45.1]} 61. Ke5 {[%clk 0:00:09.5]}
61... Kb4 {[%clk 0:01:45.3]} 62. Kxe6 {[%clk 0:00:10]} 1/2-1/2